[Event "XI Continental-ch America 2016"]
[Site "San Salvador"]
[Date "2016.05.29"]
[Round "2"]
[White "Leiva, Giuseppe"]
[Black "Flores, Diego"]
[Result "0-1"]
[ECO "B06"]
[WhiteElo "2384"]
[BlackElo "2592"]
[PlyCount "69"]
[EventDate "2016.??.??"]
[EventCountry "ESA"]
[TimeControl "40/5400+30:1800+30"]
[WhiteClock "0:00:45"]
[BlackClock "0:01:50"]

1. d4 {[%emt 0:00:02]} g6 {[%emt 0:02:57]} 2. e4 {[%emt 0:03:41]} Bg7 {[%emt 0:
01:07]} 3. c3 {[%emt 0:00:26]} d6 {[%emt 0:08:11]} 4. Nf3 {[%emt 0:01:07]} Nf6
{[%emt 0:00:49]} 5. Bd3 {[%emt 0:00:23]} O-O {[%emt 0:01:34]} 6. O-O {[%emt 0:
00:13]} c5 {[%emt 0:01:27]} 7. h3 {[%emt 0:04:45]} Qc7 {[%emt 0:06:31]} 8. Re1
{[%emt 0:05:03]} e5 {[%emt 0:15:16]} 9. Bf1 {[%emt 0:23:31]} Re8 10. d5 Kh8 {
[%emt 0:04:19]} 11. a4 {[%emt 0:02:59]} Ng8 {[%emt 0:07:54]} 12. Na3 {[%emt 0:
04:41]} Nd7 {[%emt 0:20:16]} 13. Nb5 {[%emt 0:22:27]} Qb8 {[%emt 0:00:12]} 14.
a5 {[%emt 0:00:16]} f6 {[%emt 0:03:36]} 15. b4 {[%emt 0:03:18]} Bh6 {[%emt 0:
04:59]} 16. bxc5 {[%emt 0:05:08]} Nxc5 {[%emt 0:03:00]} 17. Ba3 {[%emt 0:00:11]
} Bd7 {[%emt 0:03:12]} 18. Bxc5 {[%emt 0:02:14]} dxc5 {[%emt 0:00:19]} 19. Qb3
{[%emt 0:09:08]} Bf8 {[%emt 0:03:33]} 20. a6 {[%emt 0:01:15]} bxa6 {[%emt 0:02:
25]} 21. Rxa6 {[%emt 0:00:12]} c4 {[%emt 0:00:36]} 22. Bxc4 {[%emt 0:02:19]}
Rc8 {[%emt 0:00:34]} 23. Bf1 {[%emt 0:00:29]} Qb7 {[%emt 0:02:00]} 24. Rea1 {
[%emt 0:00:21]} Bc5 {[%emt 0:02:56]} 25. c4 {[%emt 0:02:00]} Rab8 {[%emt 0:00:
35]} 26. Qd1 {[%emt 0:02:43]} Bxb5 {[%emt 0:00:23]} 27. cxb5 {[%emt 0:00:02]}
Bb6 {[%emt 0:00:10]} 28. Nd2 {[%emt 0:00:09]} Qe7 {[%emt 0:04:31]} 29. Nc4 {
[%emt 0:00:40]} Bd4 {[%emt 0:00:08]} 30. R1a2 {[%emt 0:01:10]} f5 {[%emt 0:00:
27]} 31. Na5 {[%emt 0:01:02]} fxe4 {[%emt 0:00:38]} 32. Nc6 {[%emt 0:00:04]}
Rxc6 {[%emt 0:00:29]} 33. Rxc6 {[%emt 0:00:48]} Rf8 {[%emt 0:00:05]} 34. Rc4 {
[%emt 0:03:28]} Qf6 {[%emt 0:00:01]} 35. Qe2 0-1

[Event "XI Continental-ch America 2016"]
[Site "San Salvador"]
[Date "2016.05.29"]
[Round "2"]
[White "Erenburg, Sergey"]
[Black "Cu Hor, Winston Darwin"]
[Result "1/2-1/2"]
[ECO "B90"]
[WhiteElo "2587"]
[BlackElo "2305"]
[PlyCount "115"]
[EventDate "2016.??.??"]
[EventCountry "ESA"]
[TimeControl "40/5400+30:1800+30"]
[WhiteClock "0:02:21"]
[BlackClock "0:10:00"]

1. e4 {[%emt 0:00:00]} c5 {[%emt 0:00:00]} 2. Nf3 d6 3. d4 {[%emt 0:00:00]} Nf6
{[%emt 0:00:07]} 4. Nc3 {[%emt 0:00:00]} cxd4 {[%emt 0:00:23]} 5. Nxd4 {
[%emt 0:00:00]} a6 {[%emt 0:00:15]} 6. Be3 {[%emt 0:00:01]} e5 {[%emt 0:00:10]}
7. Nf3 {[%emt 0:00:06]} Qc7 {[%emt 0:00:07]} 8. a4 {[%emt 0:00:12]} Be6 {
[%emt 0:00:07]} 9. Ng5 {[%emt 0:05:57]} Bd7 {[%emt 0:00:13]} 10. a5 {[%emt 0:
01:37]} h6 {[%emt 0:01:15]} 11. Nf3 {[%emt 0:06:44]} Be6 {[%emt 0:00:07]} 12.
Nd5 {[%emt 0:04:09]} Bxd5 {[%emt 0:04:55]} 13. exd5 {[%emt 0:00:20]} Nbd7 {
[%emt 0:00:08]} 14. Be2 {[%emt 0:02:03]} g6 {[%emt 0:05:57]} 15. O-O {[%emt 0:
01:48]} Bg7 {[%emt 0:00:21]} 16. c4 {[%emt 0:01:00]} O-O {[%emt 0:00:15]} 17.
Nd2 {[%emt 0:04:33]} Rfb8 {[%emt 0:09:13]} 18. Ra3 {[%emt 0:06:56]} b5 {
[%emt 0:10:15]} 19. axb6 {[%emt 0:02:07]} Nxb6 {[%emt 0:00:33]} 20. Qa1 {
[%emt 0:05:17]} a5 {[%emt 0:26:18]} 21. b4 {[%emt 0:11:29]} a4 {[%emt 0:11:40]}
22. Rb1 {[%emt 0:04:59]} Nfd7 {[%emt 0:00:07]} 23. Qa2 {[%emt 0:00:13]} Kh7 {
[%emt 0:03:10]} 24. c5 {[%emt 0:05:50]} dxc5 {[%emt 0:04:01]} 25. bxc5 {
[%emt 0:01:17]} Nxc5 {[%emt 0:05:05]} 26. Rc1 {[%emt 0:01:26]} Ra5 {[%emt 0:07:
55]} 27. Ne4 {[%emt 0:11:52]} Nbd7 {[%emt 0:04:21]} 28. Bxc5 {[%emt 0:17:56]}
Nxc5 {[%emt 0:01:37]} 29. Rac3 {[%emt 0:00:08]} Bf8 {[%emt 0:02:11]} 30. d6 {
[%emt 0:01:30]} Bxd6 {[%emt 0:00:19]} 31. Nxd6 {[%emt 0:00:09]} Qxd6 {[%emt 0:
00:17]} 32. Qxf7+ {[%emt 0:00:02]} Kh8 {[%emt 0:00:12]} 33. Rh3 {[%emt 0:00:24]
} g5 {[%emt 0:01:54]} 34. Rd1 {[%emt 0:00:01]} Rf8 {[%emt 0:01:10]} 35. Rxd6 {
[%emt 0:03:05]} Rxf7 {[%emt 0:00:01]} 36. Rdxh6+ {[%emt 0:00:59]} Kg7 {[%emt 0:
00:30]} 37. Rh7+ {[%emt 0:00:53]} Kf8 {[%emt 0:00:29]} 38. Rh8+ {[%emt 0:00:01]
} Ke7 {[%emt 0:00:10]} 39. Bc4 {[%emt 0:00:31]} a3 {[%emt 0:00:44]} 40. Ba2 {
[%emt 0:00:23]} Rf6 {[%emt 0:02:28]} 41. Rb8 {[%emt 0:14:28]} e4 {[%emt 0:13:
54]} 42. Rh7+ {[%emt 0:04:54]} Kd6 {[%emt 0:01:13]} 43. Rb6+ {[%emt 0:00:21]}
Ke5 {[%emt 0:00:30]} 44. Re7+ {[%emt 0:00:07]} Kf5 {[%emt 0:01:35]} 45. g4+ {
[%emt 0:00:04]} Kg6 {[%emt 0:00:28]} 46. Rb8 {[%emt 0:00:51]} Nd3 {[%emt 0:04:
54]} 47. Rg8+ {[%emt 0:10:21]} Kh6 {[%emt 0:00:06]} 48. Rh8+ {[%emt 0:00:58]}
Kg6 {[%emt 0:00:06]} 49. Rg8+ {[%emt 0:00:05]} Kh6 {[%emt 0:00:06]} 50. Rgg7 {
[%emt 0:00:22]} Rxf2 {[%emt 0:05:12]} 51. Rh7+ {[%emt 0:04:38]} Kg6 {[%emt 0:
00:06]} 52. Reg7+ {[%emt 0:00:35]} Kf6 {[%emt 0:00:13]} 53. Rf7+ {[%emt 0:00:
02]} Kg6 {[%emt 0:00:42]} 54. Rhg7+ {[%emt 0:01:30]} Kh6 {[%emt 0:00:07]} 55.
Rh7+ {[%emt 0:00:04]} Kg6 {[%emt 0:00:07]} 56. Rfg7+ {[%emt 0:00:23]} Kf6 {
[%emt 0:00:07]} 57. Rf7+ {[%emt 0:00:04]} Kg6 {[%emt 0:00:04]} 58. Rfg7+ {
[%emt 0:00:54]} 1/2-1/2

[Event "XI Continental-ch America 2016"]
[Site "San Salvador"]
[Date "2016.05.29"]
[Round "2"]
[White "Minero, Sergio"]
[Black "Kovalyov, Anton"]
[Result "1/2-1/2"]
[ECO "E15"]
[WhiteElo "2392"]
[BlackElo "2602"]
[PlyCount "68"]
[EventDate "2016.??.??"]
[EventCountry "ESA"]
[TimeControl "40/5400+30:1800+30"]
[WhiteClock "0:15:21"]
[BlackClock "1:00:33"]

1. d4 {[%emt 0:06:51]} Nf6 {[%emt 0:00:00]} 2. c4 {[%emt 0:00:08]} e6 {[%emt 0:
00:00]} 3. Nf3 {[%emt 0:00:06]} b6 {[%emt 0:00:00]} 4. g3 {[%emt 0:00:08]} c6 {
[%emt 0:00:00]} 5. Bg2 {[%emt 0:00:23]} d5 {[%emt 0:00:04]} 6. O-O {[%emt 0:00:
29]} Be7 {[%emt 0:00:06]} 7. Qc2 {[%emt 0:00:39]} O-O {[%emt 0:00:10]} 8. Nbd2
{[%emt 0:00:40]} Bb7 {[%emt 0:00:08]} 9. e4 {[%emt 0:00:14]} Na6 {[%emt 0:00:
52]} 10. a3 {[%emt 0:02:52]} dxc4 {[%emt 0:00:16]} 11. Nxc4 {[%emt 0:01:01]} c5
{[%emt 0:00:25]} 12. e5 {[%emt 0:03:18]} Nd5 {[%emt 0:00:08]} 13. dxc5 {
[%emt 0:01:09]} Nxc5 {[%emt 0:00:08]} 14. b4 {[%emt 0:01:46]} Nd7 {[%emt 0:01:
03]} 15. Bb2 {[%emt 0:00:30]} Rc8 {[%emt 0:00:21]} 16. Qb3 {[%emt 0:12:33]} Qc7
{[%emt 0:01:49]} 17. Rac1 {[%emt 0:01:42]} Qb8 {[%emt 0:01:29]} 18. Rfd1 {
[%emt 0:14:24]} Rfd8 {[%emt 0:02:09]} 19. Nd4 {[%emt 0:01:11]} a6 {[%emt 0:15:
12]} 20. Nf5 {[%emt 0:06:11]} exf5 {[%emt 0:00:10]} 21. Bxd5 {[%emt 0:00:06]}
Bxd5 {[%emt 0:00:07]} 22. Rxd5 {[%emt 0:00:02]} b5 {[%emt 0:00:44]} 23. Ne3 {
[%emt 0:09:08]} Rxc1+ {[%emt 0:01:36]} 24. Bxc1 {[%emt 0:00:39]} Qc8 {[%emt 0:
00:20]} 25. Bb2 {[%emt 0:03:33]} Nb6 {[%emt 0:03:17]} 26. Rxd8+ {[%emt 0:01:29]
} Bxd8 {[%emt 0:00:07]} 27. Qd3 {[%emt 0:07:00]} f4 {[%emt 0:07:44]} 28. gxf4 {
[%emt 0:03:07]} Nc4 {[%emt 0:00:06]} 29. Nxc4 {[%emt 0:02:08]} bxc4 {[%emt 0:
00:06]} 30. Qd4 {[%emt 0:00:17]} Bb6 {[%emt 0:07:16]} 31. Qxb6 {[%emt 0:07:43]}
Qg4+ {[%emt 0:00:19]} 32. Kf1 {[%emt 0:00:04]} Qd1+ {[%emt 0:00:05]} 33. Kg2 {
[%emt 0:00:05]} Qg4+ {[%emt 0:00:04]} 34. Kf1 {[%emt 0:00:03]} Qd1+ {[%emt 0:
00:06]} 1/2-1/2

[Event "XI Continental-ch America 2016"]
[Site "San Salvador"]
[Date "2016.05.29"]
[Round "2"]
[White "Lopez, Abel"]
[Black "Ortiz Suarez, Isan Reynaldo"]
[Result "0-1"]
[ECO "B90"]
[WhiteElo "2305"]
[BlackElo "2578"]
[PlyCount "70"]
[EventDate "2016.??.??"]
[EventCountry "ESA"]
[TimeControl "40/5400+30:1800+30"]
[WhiteClock "0:10:54"]
[BlackClock "0:26:41"]

1. e4 {[%emt 0:00:00]} c5 {[%emt 0:00:00]} 2. Nf3 {[%emt 0:00:07]} d6 {[%emt 0:
00:00]} 3. d4 {[%emt 0:00:08]} cxd4 {[%emt 0:00:00]} 4. Nxd4 {[%emt 0:00:07]}
Nf6 {[%emt 0:00:00]} 5. Nc3 {[%emt 0:00:12]} a6 {[%emt 0:00:00]} 6. Be3 {
[%emt 0:00:05]} e5 {[%emt 0:00:16]} 7. Nb3 {[%emt 0:00:07]} Be6 {[%emt 0:00:04]
} 8. Qd2 {[%emt 0:00:06]} Nbd7 {[%emt 0:00:04]} 9. f3 {[%emt 0:01:00]} h5 {
[%emt 0:01:51]} 10. O-O-O {[%emt 0:00:09]} Be7 {[%emt 0:00:24]} 11. Kb1 {
[%emt 0:01:07]} Qc7 {[%emt 0:02:25]} 12. Nd5 {[%emt 0:01:44]} Nxd5 {[%emt 0:02:
36]} 13. exd5 {[%emt 0:00:05]} Bf5 {[%emt 0:00:03]} 14. Bd3 {[%emt 0:01:18]}
Bxd3 {[%emt 0:00:43]} 15. Qxd3 {[%emt 0:04:27]} Rc8 {[%emt 0:06:32]} 16. Rc1 {
[%emt 0:16:21]} b5 {[%emt 0:05:59]} 17. Nd2 {[%emt 0:00:06]} O-O {[%emt 0:00:
53]} 18. g4 {[%emt 0:11:03]} hxg4 {[%emt 0:25:45]} 19. fxg4 {[%emt 0:00:06]}
Qb7 {[%emt 0:00:12]} 20. Ne4 {[%emt 0:03:33]} Rc4 {[%emt 0:09:54]} 21. Rhg1 {
[%emt 0:11:08]} Nf6 {[%emt 0:01:07]} 22. Nxf6+ {[%emt 0:02:33]} Bxf6 {[%emt 0:
00:11]} 23. g5 {[%emt 0:03:21]} e4 {[%emt 0:00:40]} 24. Qd2 {[%emt 0:05:42]}
Be5 {[%emt 0:00:17]} 25. g6 {[%emt 0:00:54]} fxg6 {[%emt 0:02:07]} 26. Rxg6 {
[%emt 0:00:04]} Qf7 {[%emt 0:00:11]} 27. Rg2 {[%emt 0:05:45]} Qe8 {[%emt 0:06:
21]} 28. c3 {[%emt 0:01:46]} Rf5 {[%emt 0:02:04]} 29. b3 {[%emt 0:07:03]} Rc7 {
[%emt 0:00:29]} 30. Bd4 {[%emt 0:01:06]} Qf7 {[%emt 0:03:52]} 31. Bxe5 {
[%emt 0:08:11]} Rxe5 {[%emt 0:00:08]} 32. Rg5 {[%emt 0:00:54]} e3 {[%emt 0:01:
38]} 33. Qg2 {[%emt 0:00:04]} Rce7 {[%emt 0:01:15]} 34. Re1 {[%emt 0:01:44]}
Qf2 {[%emt 0:01:47]} 35. Re2 {[%emt 0:04:30]} Rxg5 {[%emt 0:01:01]} 0-1

[Event "XI Continental-ch America 2016"]
[Site "San Salvador"]
[Date "2016.05.29"]
[Round "2"]
[White "Bruzon Batista, Lazaro"]
[Black "Liang, Awonder"]
[Result "0-1"]
[ECO "B90"]
[WhiteElo "2681"]
[BlackElo "2410"]
[PlyCount "90"]
[EventDate "2016.??.??"]
[EventCountry "ESA"]
[TimeControl "40/5400+30:1800+30"]
[WhiteClock "0:03:55"]
[BlackClock "0:23:21"]

1. e4 {[%emt 0:00:00]} c5 {[%emt 0:00:00]} 2. Nf3 {[%emt 0:00:00]} d6 {[%emt 0:
00:00]} 3. d4 {[%emt 0:04:49]} cxd4 {[%emt 0:00:07]} 4. Nxd4 {[%emt 0:00:06]}
Nf6 {[%emt 0:00:06]} 5. Nc3 {[%emt 0:00:03]} a6 {[%emt 0:00:08]} 6. Be3 {
[%emt 0:01:35]} e5 {[%emt 0:00:22]} 7. Nb3 {[%emt 0:05:07]} Be6 {[%emt 0:00:44]
} 8. Qd2 {[%emt 0:00:08]} Nbd7 {[%emt 0:00:49]} 9. f4 {[%emt 0:07:44]} exf4 {
[%emt 0:07:57]} 10. Bxf4 {[%emt 0:00:38]} Ne5 {[%emt 0:01:21]} 11. O-O-O {
[%emt 0:00:32]} Be7 {[%emt 0:06:05]} 12. Nd4 {[%emt 0:23:46]} O-O {[%emt 0:06:
21]} 13. g3 {[%emt 0:01:14]} Qd7 {[%emt 0:24:33]} 14. h4 {[%emt 0:03:31]} Bg4 {
[%emt 0:11:25]} 15. Be2 {[%emt 0:01:07]} Rfc8 {[%emt 0:04:16]} 16. Bxg4 {
[%emt 0:02:52]} Qxg4 {[%emt 0:01:51]} 17. Nf5 {[%emt 0:03:34]} Bf8 {[%emt 0:00:
24]} 18. Nxd6 {[%emt 0:06:01]} Nc4 {[%emt 0:05:32]} 19. Nxc4 {[%emt 0:00:09]}
Rxc4 {[%emt 0:00:03]} 20. e5 {[%emt 0:01:54]} Nh5 {[%emt 0:04:34]} 21. Nd5 {
[%emt 0:01:13]} Qe6 {[%emt 0:04:44]} 22. Qe2 {[%emt 0:05:09]} Rc5 {[%emt 0:00:
20]} 23. Qf3 {[%emt 0:04:09]} Rac8 {[%emt 0:07:16]} 24. c3 {[%emt 0:03:45]} Ra5
{[%emt 0:03:53]} 25. Kb1 {[%emt 0:05:57]} Rcc5 {[%emt 0:03:02]} 26. Nb4 {
[%emt 0:02:12]} Rc8 {[%emt 0:01:49]} 27. b3 {[%emt 0:12:13]} Nxf4 {[%emt 0:01:
53]} 28. gxf4 {[%emt 0:00:22]} Qf5+ {[%emt 0:00:11]} 29. Ka1 {[%emt 0:03:48]}
Rxe5 {[%emt 0:00:20]} 30. Qxb7 {[%emt 0:00:46]} Rb5 {[%emt 0:02:45]} 31. Qd7 {
[%emt 0:00:17]} Qxd7 {[%emt 0:01:20]} 32. Rxd7 {[%emt 0:00:02]} Bxb4 {[%emt 0:
00:56]} 33. cxb4 {[%emt 0:00:04]} Rxb4 {[%emt 0:00:03]} 34. Ra7 {[%emt 0:01:04]
} Rxf4 {[%emt 0:00:35]} 35. Rxa6 {[%emt 0:00:05]} h5 {[%emt 0:00:54]} 36. Rh2 {
[%emt 0:00:26]} Rg4 {[%emt 0:00:36]} 37. Kb2 {[%emt 0:01:11]} f5 {[%emt 0:00:
29]} 38. Ra5 {[%emt 0:00:27]} Rf8 {[%emt 0:00:25]} 39. a4 {[%emt 0:00:47]} g6 {
[%emt 0:00:26]} 40. Ra7 {[%emt 0:00:37]} f4 {[%emt 0:00:44]} 41. Rc2 {[%emt 0:
30:08]} g5 {[%emt 0:30:35]} 42. Rc6 {[%emt 0:00:00]} gxh4 {[%emt 0:00:00]} 43.
Raa6 {[%emt 0:00:00]} h3 {[%emt 0:00:00]} 44. Rg6+ {[%emt 0:00:00]} Rxg6 {
[%emt 0:00:00]} 45. Rxg6+ {[%emt 0:00:00]} Kh7 {[%emt 0:00:00]} 0-1

[Event "XI Continental-ch America 2016"]
[Site "San Salvador"]
[Date "2016.05.29"]
[Round "2"]
[White "Lenderman, Aleksandr"]
[Black "Sanchez, Roberto Carlos"]
[Result "1-0"]
[ECO "D10"]
[WhiteElo "2614"]
[BlackElo "2397"]
[PlyCount "81"]
[EventDate "2016.??.??"]
[EventCountry "ESA"]
[TimeControl "40/5400+30:1800+30"]
[WhiteClock "0:02:18"]
[BlackClock "0:00:54"]

1. d4 {[%emt 0:00:00]} d5 {[%emt 0:00:44]} 2. c4 {[%emt 0:00:00]} c6 {[%emt 0:
00:26]} 3. Nc3 {[%emt 0:00:00]} Nf6 {[%emt 0:00:12]} 4. e3 {[%emt 0:00:02]} g6
{[%emt 0:00:28]} 5. Nf3 {[%emt 0:00:36]} Bg7 {[%emt 0:00:11]} 6. Bd3 {[%emt 0:
00:25]} O-O {[%emt 0:00:28]} 7. O-O {[%emt 0:00:31]} Nbd7 {[%emt 0:03:48]} 8.
cxd5 {[%emt 0:03:22]} cxd5 {[%emt 0:00:02]} 9. Qb3 {[%emt 0:03:39]} e6 {
[%emt 0:01:49]} 10. Bd2 {[%emt 0:00:41]} a6 {[%emt 0:06:01]} 11. Rfc1 {[%emt 0:
06:31]} b6 {[%emt 0:01:43]} 12. Na4 {[%emt 0:09:36]} Ne4 {[%emt 0:07:33]} 13.
Bb4 {[%emt 0:02:06]} Re8 {[%emt 0:00:04]} 14. Bxe4 {[%emt 0:11:35]} dxe4 {
[%emt 0:01:34]} 15. Nd2 {[%emt 0:00:01]} Bb7 {[%emt 0:03:55]} 16. Nc3 {[%emt 0:
08:06]} Nf6 {[%emt 0:16:04]} 17. Ba5 {[%emt 0:13:45]} bxa5 {[%emt 0:01:23]} 18.
Qxb7 {[%emt 0:00:02]} e5 {[%emt 0:00:09]} 19. dxe5 {[%emt 0:01:11]} Rb8 {
[%emt 0:32:57]} 20. Qxa6 {[%emt 0:02:24]} Rxe5 {[%emt 0:07:00]} 21. Rd1 {
[%emt 0:04:36]} Qc7 {[%emt 0:04:23]} 22. Rab1 {[%emt 0:05:48]} Ng4 {[%emt 0:05:
27]} 23. Qe2 {[%emt 0:06:36]} Rg5 {[%emt 0:04:02]} 24. g3 {[%emt 0:01:24]} Bxc3
{[%emt 0:00:21]} 25. bxc3 {[%emt 0:01:58]} Rxb1 {[%emt 0:01:10]} 26. Rxb1 {
[%emt 0:00:15]} Nf6 {[%emt 0:00:05]} 27. c4 {[%emt 0:01:04]} h5 {[%emt 0:00:17]
} 28. Qd1 {[%emt 0:03:00]} Qd7 {[%emt 0:01:12]} 29. Nb3 {[%emt 0:02:32]} Qa4 {
[%emt 0:00:29]} 30. Qc2 {[%emt 0:01:19]} Qd7 {[%emt 0:00:14]} 31. Qc3 {[%emt 0:
01:31]} Qf5 {[%emt 0:00:44]} 32. Nd2 {[%emt 0:01:09]} Qe6 {[%emt 0:00:33]} 33.
Qd4 {[%emt 0:01:57]} Re5 {[%emt 0:00:17]} 34. Rb5 {[%emt 0:03:14]} Rxb5 {
[%emt 0:00:30]} 35. cxb5 {[%emt 0:00:03]} h4 {[%emt 0:00:42]} 36. b6 {[%emt 0:
00:51]} Qc6 {[%emt 0:00:30]} 37. b7 {[%emt 0:03:28]} Nd7 {[%emt 0:00:32]} 38.
Qxd7 {[%emt 0:00:33]} Qxd7 {[%emt 0:00:09]} 39. b8=Q+ {[%emt 0:00:05]} Kh7 {
[%emt 0:00:08]} 40. Nxe4 {[%emt 0:02:09]} h3 {[%emt 0:00:50]} 41. Nf6+ {
[%emt 0:30:07] Qd8 [%clk 0:00:01]} 1-0

[Event "XI Continental-ch America 2016"]
[Site "San Salvador"]
[Date "2016.05.29"]
[Round "3"]
[White "Ortiz Suarez, Isan Reynaldo"]
[Black "Gemy, Jose"]
[Result "1/2-1/2"]
[ECO "A30"]
[WhiteElo "2578"]
[BlackElo "2410"]
[PlyCount "100"]
[EventDate "2016.??.??"]
[EventCountry "ESA"]
[TimeControl "40/5400+30:1800+30"]
[WhiteClock "0:26:25"]
[BlackClock "0:22:42"]

1. Nf3 {[%emt 0:04:08]} Nf6 {[%emt 0:00:00]} 2. g3 {[%emt 0:00:07]} b6 {
[%emt 0:01:34]} 3. Bg2 {[%emt 0:00:11]} Bb7 {[%emt 0:00:06]} 4. O-O e6 {
[%emt 0:00:56]} 5. c4 {[%emt 0:01:52]} c5 {[%emt 0:00:50]} 6. Nc3 {[%emt 0:00:
18]} Be7 {[%emt 0:03:09]} 7. Re1 {[%emt 0:00:55]} Ne4 {[%emt 0:04:16]} 8. Nxe4
{[%emt 0:06:29]} Bxe4 {[%emt 0:00:06]} 9. d3 {[%emt 0:00:03]} Bb7 {[%emt 0:02:
03]} 10. d4 {[%emt 0:00:27]} cxd4 {[%emt 0:03:35]} 11. Qxd4 {[%emt 0:00:15]}
O-O {[%emt 0:02:00]} 12. Bf4 {[%emt 0:01:43]} Nc6 {[%emt 0:03:37]} 13. Qd1 {
[%emt 0:02:46]} Rc8 {[%emt 0:04:21]} 14. Rc1 {[%emt 0:02:03]} Na5 {[%emt 0:01:
39]} 15. b3 {[%emt 0:03:59]} d5 {[%emt 0:08:25]} 16. cxd5 {[%emt 0:00:59]} Qxd5
{[%emt 0:00:42]} 17. Qxd5 {[%emt 0:04:13]} Bxd5 {[%emt 0:01:06]} 18. Nd4 {
[%emt 0:02:01]} Bxg2 {[%emt 0:03:46]} 19. Kxg2 {[%emt 0:00:29]} Ba3 {[%emt 0:
00:32]} 20. Rxc8 {[%emt 0:01:41]} Rxc8 {[%emt 0:00:01]} 21. Nb5 {[%emt 0:00:11]
} Bb4 {[%emt 0:00:10]} 22. Rd1 {[%emt 0:07:57]} h6 {[%emt 0:07:02]} 23. Rd7 {
[%emt 0:04:09]} Rc5 {[%emt 0:26:38]} 24. Nxa7 {[%emt 0:09:56]} Rc2 {[%emt 0:00:
41]} 25. Rd4 {[%emt 0:00:44]} e5 {[%emt 0:11:58]} 26. Rxb4 {[%emt 0:05:12]}
exf4 {[%emt 0:00:06]} 27. Rxb6 {[%emt 0:00:16]} Rxe2 {[%emt 0:02:25]} 28. a4 {
[%emt 0:08:20]} Rb2 {[%emt 0:01:46]} 29. b4 {[%emt 0:00:18]} Nc4 {[%emt 0:00:
17]} 30. Rb8+ {[%emt 0:00:14]} Kh7 {[%emt 0:00:04]} 31. gxf4 {[%emt 0:00:05]}
Ne3+ {[%emt 0:00:51]} 32. Kf3 {[%emt 0:00:15]} Nd5 {[%emt 0:00:27]} 33. Nc6 {
[%emt 0:00:37]} Rb3+ {[%emt 0:00:11]} 34. Ke4 {[%emt 0:07:00]} Nc3+ {[%emt 0:
00:30]} 35. Kd4 {[%emt 0:00:10]} Nxa4 {[%emt 0:00:17]} 36. Ne5 {[%emt 0:00:06]}
f6 {[%emt 0:00:38]} 37. Nd3 {[%emt 0:01:37]} Kg6 {[%emt 0:00:14]} 38. Rb7 {
[%emt 0:05:10]} Kf5 {[%emt 0:02:02]} 39. f3 {[%emt 0:02:45]} Nb2 {[%emt 0:01:
53]} 40. Rb5+ {[%emt 0:00:08]} Kg6 {[%emt 0:00:09]} 41. Ne1 {[%emt 0:31:40]}
Nd1 {[%emt 0:31:08]} 42. Ng2 {[%emt 0:03:42]} Rb2 {[%emt 0:00:00]} 43. Nh4+ {
[%emt 0:00:00]} Kh7 {[%emt 0:00:00]} 44. Rb7 {[%emt 0:00:00]} Rxh2 {[%emt 0:00:
00]} 45. Nf5 {[%emt 0:00:00]} Kg6 {[%emt 0:00:00]} 46. Ne7+ {[%emt 0:00:00]}
Kh5 {[%emt 0:00:00]} 47. Nd5 {[%emt 0:00:00]} Rd2+ {[%emt 0:00:00]} 48. Kc5 {
[%emt 0:00:00]} Rc2+ {[%emt 0:00:00]} 49. Kd4 {[%emt 0:00:00]} Rd2+ {[%emt 0:
00:00]} 50. Kc5 {[%emt 0:00:00]} Rc2+ {[%emt 0:00:00]} 1/2-1/2

[Event "XI Continental-ch America 2016"]
[Site "San Salvador"]
[Date "2016.05.29"]
[Round "3"]
[White "Cu Hor, Winston Darwin"]
[Black "Cordova, Emilio"]
[Result "0-1"]
[ECO "A04"]
[WhiteElo "2305"]
[BlackElo "2602"]
[PlyCount "64"]
[EventDate "2016.??.??"]
[EventCountry "ESA"]
[TimeControl "40/5400+30:1800+30"]
[WhiteClock "0:17:49"]
[BlackClock "1:00:31"]

1. Nf3 {[%emt 0:00:00]} c5 {[%emt 0:00:00]} 2. c4 {[%emt 0:00:10]} b6 {[%emt 0:
00:00]} 3. g3 {[%emt 0:00:08]} Bb7 {[%emt 0:00:00]} 4. Bg2 {[%emt 0:00:06]} Nf6
{[%emt 0:00:13]} 5. O-O {[%emt 0:00:42]} d6 {[%emt 0:00:35]} 6. b3 {[%emt 0:00:
05]} Nbd7 {[%emt 0:00:29]} 7. Bb2 {[%emt 0:00:16]} e6 {[%emt 0:00:50]} 8. d3 {
[%emt 0:01:15]} Be7 {[%emt 0:00:15]} 9. Nc3 {[%emt 0:00:05]} O-O {[%emt 0:00:
14]} 10. e3 {[%emt 0:00:05]} a6 {[%emt 0:00:20]} 11. Qe2 {[%emt 0:01:24]} Rc8 {
[%emt 0:00:57]} 12. Rad1 {[%emt 0:00:17]} Re8 {[%emt 0:00:55]} 13. Ne1 {
[%emt 0:04:31]} Qc7 {[%emt 0:00:22]} 14. f4 {[%emt 0:00:20]} d5 {[%emt 0:07:31]
} 15. g4 {[%emt 0:07:22]} d4 {[%emt 0:03:52]} 16. exd4 {[%emt 0:01:55]} cxd4 {
[%emt 0:00:05]} 17. Nb1 {[%emt 0:00:46]} h5 {[%emt 0:01:11]} 18. Bxb7 {[%emt 0:
02:03]} Qxb7 {[%emt 0:00:04]} 19. g5 {[%emt 0:00:08]} Ng4 {[%emt 0:00:21]} 20.
Bxd4 {[%emt 0:06:07]} e5 {[%emt 0:01:38]} 21. h3 {[%emt 0:12:11]} exd4 {
[%emt 0:11:53]} 22. hxg4 {[%emt 0:00:50]} Bd6 {[%emt 0:00:58]} 23. Qg2 {
[%emt 0:04:59]} Qxg2+ {[%emt 0:00:20]} 24. Nxg2 {[%emt 0:00:13]} hxg4 {[%emt 0:
01:29]} 25. Nd2 {[%emt 0:06:59]} Nc5 {[%emt 0:02:19]} 26. b4 {[%emt 0:14:46]}
Nxd3 {[%emt 0:00:26]} 27. c5 {[%emt 0:00:46]} Bf8 {[%emt 0:03:29]} 28. cxb6 {
[%emt 0:04:39]} Nxb4 {[%emt 0:01:48]} 29. a3 {[%emt 0:05:47]} Nc2 {[%emt 0:00:
51]} 30. Nb3 {[%emt 0:00:30]} Rc3 {[%emt 0:01:33]} 31. Nc1 {[%emt 0:02:41]} Bc5
{[%emt 0:00:17]} 32. Nd3 {[%emt 0:06:05]} Bxb6 {[%emt 0:00:14]} 0-1